[Event "Indian Rapid Championship 2023-24"]
[Site "Nashik"]
[Date "2024.03.04"]
[Round "2.5"]
[White "Potawad Anirudhha"]
[Black "Prraneeth Vuppala"]
[Result "0-1"]
[ECO "B23"]
[WhiteElo "2281"]
[BlackElo "2506"]
[Annotator "TA"]
[PlyCount "117"]
[EventDate "2024.03.02"]
[EventType "swiss"]
[EventCountry "IND"]
[SourceTitle "playchess.com"]
[Source "ChessBase"]
[SourceQuality "1"]
[TimeControl "900+10"]

{[%evp 11,117,-16,0,1,-8,-15,0,0,0,0,0,0,-2,0,24,25,29,16,25,34,34,25,30,22,33,19,20,0,0,0,14,0,39,41,35,36,28,0,0,-8,32,0,0,0,0,0,0,0,0,-31,-36,-22,-24,-56,-56,-150,-161,-140,-142,-396,-385,-404,-397,-389,-368,-437,-437,-429,-422,-679,-686,-686,-681,-679,-676,-646,-662,-642,-591,-493,-475,-461,-461,-461,-461,-461,-449,-441,-441,-29970,-29971,-29972,-29973,-29972,-29974,-29973,-29974,-29975,-29972,-29982,-29983,-29982,-29983,-29983,-29984,-29986,-29987,-29987]} 1. e4 {[%emt 0:00:02]} c5 {[%emt 0:00:02]} 2. Nc3 {[%emt 0:00:12]} d6 {[%emt 0:00:01]} 3. f4 {[%emt 0:00:02]} g6 {[%emt 0:00:04]} 4. Nf3 {[%emt 0:00:03]} Bg7 {[%emt 0:00:02]} 5. Bc4 {[%emt 0:00:09]} Nc6 {[%emt 0:00:03]} 6. O-O {[%emt 0:00:03]} e6 {[%emt 0:00:25]} 7. d4 {[%emt 0:00:05]} cxd4 {[%emt 0:00:22]} 8. Nb5 {[%emt 0:00:03]} a6 {[%emt 0:00:01]} 9. Nbxd4 {[%emt 0:00:03] The position is equal.} Nxd4 {[%emt 0:00:03]} 10. Nxd4 {[%emt 0:00:02]} Nf6 {[%emt 0:00:39]} 11. e5 {[%emt 0:04:31]} Ne4 {[%emt 0:05:22]} 12. Qf3 {[%emt 0:06:04]} d5 {[%emt 0:00:44]} (12... dxe5 $5 13. fxe5 Qxd4+ 14. Be3 Qd7 (14... Qxc4 15. Qxf7+ Kd8 16. Bb6+) 15. Qxe4 Qc7 $11) 13. Bb3 {[%emt 0:00:08]} O-O {[%emt 0:00:30]} 14. Be3 {[%emt 0:00:01]} b5 {[%emt 0:00:41]} 15. c3 {[%emt 0:00:38]} f6 {[%emt 0:00:55]} 16. exf6 {[%emt 0:00:20]} Qxf6 {[%emt 0:00:49]} 17. Rae1 {[%emt 0:01:25]} Bb7 {[%emt 0:01:30]} 18. Qh3 {[%emt 0:01:39]} Rae8 {[%emt 0:00:06]} 19. a4 {[%emt 0:00:18]} (19. Bc1 {keeps more tension.} Bc8 20. f5 gxf5 21. Nxf5 exf5 22. Bxd5+ Kh8 23. Bxe4 Rxe4 24. Rxe4 fxe4 25. Rxf6 Bxh3 26. Rxf8+ Bxf8 27. gxh3 Kg7 28. Kf2) 19... b4 {[%emt 0:01:27]} 20. cxb4 {[%emt 0:00:40]} Nd2 {[%emt 0:00:19]} 21. Rf2 {[%emt 0:00:45]} Nc4 {[%emt 0:00:37]} 22. Bxc4 {[%emt 0:00:31]} dxc4 {[%emt 0:00:02]} 23. Nf3 {[%emt 0:00:02]} Qf5 {[%emt 0:01:06]} 24. Qxf5 {[%emt 0:00:38]} exf5 {[%emt 0:00:02]} 25. Rfe2 {[%emt 0:00:07]} Bc6 {[%emt 0:02:11]} (25... Bxf3 $5 26. gxf3 Rxe3 27. Rxe3 Bd4 $11) 26. Bc5 {[%emt 0:00:15]} Rxe2 {[%emt 0:00:03]} 27. Rxe2 {[%emt 0:00:01]} Rd8 {[%emt 0:00:24]} 28. Ne5 {[%emt 0:00:18]} Bxa4 {[%emt 0:00:21]} 29. Nxc4 {[%emt 0:00:05]} Bb5 {[%emt 0:00:22]} 30. Rd2 {[%emt 0:00:09]} Rxd2 {[%emt 0:00:12]} 31. Nxd2 {[%emt 0:00:01]} Bxb2 $15 {[%emt 0:00:02][%mdl 4096] Endgame. Threatening ...Bc1. KBB-KBN. This pair of bishops is nice.} 32. Kf2 {[%emt 0:00:04]} Kf7 {[%emt 0:00:02]} 33. Nf3 {[%emt 0:00:13] [#]} (33. Ke3 $1 $15) 33... Ke6 $1 $17 {[%emt 0:00:18]} 34. Ng5+ {[%emt 0:00:28]} Kd5 {[%emt 0:00:01][%cal Oa6a5] White must now prevent ...a5!} 35. Nxh7 $2 {[%emt 0:00:02][%mdl 8192] [#] White does not recover from this.} (35. Bf8 $17 {was necessary.}) 35... a5 $1 $19 {[%emt 0:00:02][%mdl 512]} 36. bxa5 {[%emt 0:00:27]} Kxc5 {[%emt 0:00:03]} 37. Nf8 {[%emt 0:00:17]} Be8 {[%emt 0:00:15]} 38. h3 {[%emt 0:00:10]} Bd4+ {[%emt 0:00:13]} 39. Kf3 {[%emt 0:00:09]} Kd6 {[%emt 0:00:05] Inhibits Ne6.} 40. g4 {[%emt 0:00:05]} (40. Nh7 $142) 40... Ke7 {[%emt 0:00:05]} 41. Nh7 {[%emt 0:00:02]} Bc6+ {[%emt 0:00:04]} 42. Kg3 {[%emt 0:00:02]} Bc3 {[%emt 0:00:03] Threatens to win with ...Be1+.} 43. a6 {[%emt 0:00:26]} Be1+ {[%emt 0:00:04]} 44. Kh2 {[%emt 0:00:01]} Bf2 {[%emt 0:00:06]} 45. Ng5 {[%emt 0:00:11]} Bb5 {[%emt 0:00:05]} 46. Kg2 {[%emt 0:00:01]} Bb6 {[%emt 0:00:04]} 47. Nf3 {[%emt 0:00:20]} Bxa6 {[%emt 0:00:11]} 48. Ne5 {[%emt 0:00:01]} Bb7+ {[%emt 0:00:30]} 49. Kg3 {[%emt 0:00:08]} g5 {[%emt 0:00:04]} (49... fxg4 $2 50. Nxg6+ Kf6 51. Ne5 $19) 50. Ng6+ {[%emt 0:00:51]} (50. gxf5 $19 gxf4+ 51. Kg4) 50... Kf6 {[%emt 0:00:06] Black mates.} 51. gxf5 {[%emt 0:00:01]} Kxf5 {[%emt 0:00:19]} 52. Ne7+ {[%emt 0:00:12]} Kf6 {[%emt 0:00:23]} 53. Ng8+ {[%emt 0:00:11]} Kg7 {[%emt 0:00:06]} 54. Ne7 {[%emt 0:00:02]} Bc7 {[%emt 0:00:02]} 55. Kg4 {[%emt 0:00:25]} gxf4 {[%emt 0:00:12]} 56. Nf5+ {[%emt 0:00:05]} Kf6 {[%emt 0:00:03]} 57. Nd4 {[%emt 0:00:04]} Ke5 {[%emt 0:00:34]} 58. Nf3+ {[%emt 0:00:20]} Bxf3+ {[%emt 0:00:00]} 59. Kxf3 {[%emt 0:00:03] Weighted Error Value: White=0.28 (precise) /Black=0.05 (flawless) .  Loses game:     	White=1     	---        Mistake:       	White=3     	---        Inaccurate:     	White=4     	Black=2      OK:         	White=14    	Black=20     Best:        	White=1     	Black=4      Strong:       	---       	Black=1      Brilliant:      	---       	Black=1} 0-1

[Event "Indian Rapid Championship 2023-24"]
[Site "Nashik"]
[Date "2024.03.04"]
[Round "2.6"]
[White "Raja Rithvik R"]
[Black "Tejaswini, Sagar"]
[Result "1-0"]
[ECO "D23"]
[WhiteElo "2532"]
[BlackElo "2019"]
[Annotator "TA"]
[PlyCount "77"]
[EventDate "2024.03.02"]
[EventType "swiss"]
[EventCountry "IND"]
[SourceTitle "playchess.com"]
[Source "ChessBase"]
[SourceQuality "1"]
[TimeControl "900+10"]

{[%evp 16,77,27,10,7,3,27,13,22,0,-22,-52,-51,-41,-6,-2,0,0,71,77,64,74,48,47,87,88,89,87,144,0,0,0,315,311,307,314,400,407,406,404,407,407,537,525,796,647,854,551,647,658,716,697,1565,1501,1449,1247,1312,1211,1932,1751,1640,1626,5473,5461]} 1. Nf3 {[%emt 0:00:12]} d5 {[%emt 0:00:03]} 2. d4 {[%emt 0:00:12]} Nf6 {[%emt 0:00:03]} 3. c4 {[%emt 0:00:02]} c6 {[%emt 0:00:02]} 4. Qb3 {[%emt 0:00:17]} dxc4 {[%emt 0:00:04]} 5. Qxc4 {[%emt 0:00:02]} Bf5 {[%emt 0:00:02]} 6. g3 {[%emt 0:00:03]} e6 {[%emt 0:00:02]} 7. Bg2 {[%emt 0:00:01]} Nbd7 {[%emt 0:00:02]} 8. O-O {[%emt 0:00:03]} Be7 {[%emt 0:00:02]} 9. e3 {[%emt 0:00:01]} O-O {[%emt 0:00:07]} 10. Qe2 {[%emt 0:00:02]} Rc8 {[%emt 0:00:49]} 11. Rd1 {[%emt 0:00:05]} b5 {[%emt 0:00:14] The position is equal.} 12. a4 {[%emt 0:02:45]} b4 {[%emt 0:01:08]} 13. Nbd2 {[%emt 0:00:19]} Bc2 {[%emt 0:01:38]} 14. Re1 {[%emt 0:00:16]} b3 {[%emt 0:00:42]} 15. Nc4 {[%emt 0:00:38]} Bb4 {[%emt 0:01:54]} 16. Bd2 {[%emt 0:00:13]} Qe7 {[%emt 0:00:24]} (16... Bxd2 $1 $11 17. Nfxd2 Nd5) 17. Rec1 {[%emt 0:02:44]} Bxd2 {[%emt 0:01:27]} 18. Qxd2 {[%emt 0:02:14]} c5 {[%emt 0:03:49]} 19. Ne1 {[%emt 0:01:29]} cxd4 {[%emt 0:02:15]} 20. Nxc2 {[%emt 0:00:05]} (20. Qxd4 {simplifies} Rfd8 21. Qd6 Kf8 22. Qxe7+ Kxe7 23. Nxc2 bxc2 24. Rxc2 Ne5 25. Bf1) 20... bxc2 {[%emt 0:00:15]} 21. Qxd4 {[%emt 0:04:56][%cal Oc4d6]} (21. Rxc2 Nc5 22. Ra3 (22. Qxd4 $2 Nb3 $19) 22... d3 $11) 21... Qb4 {[%emt 0:00:47] [#]} (21... Nc5 $142) 22. Bf1 {[%emt 0:01:01]} (22. Nd6 $1 $16 Qxd4 23. exd4) 22... Nc5 $1 $11 {[%emt 0:00:59]} 23. Nd2 {[%emt 0:00:02] Inhibits Nb3.} (23. Rxc2 $2 {too greedy.} Nb3 (23... Nxa4 24. Qxa7 Ra8 25. Qd4 $11) 24. Qd1 Nxa1 25. Qxa1 Ne4 $19) 23... a5 {[%emt 0:01:44][%mdl 8192] White leaves nothing to chance now.} (23... Qb7 $11 24. Bg2 (24. Rxc2 $2 {perishes.} Nb3 $19) 24... Qa6) 24. Qxb4 $18 {[%emt 0:00:36]} ({But not} 24. Rxc2 Qxd4 25. exd4 Nb7 $18) 24... axb4 {[%emt 0:00:03]} 25. Rxc2 {[%emt 0:00:02]} Nfe4 {[%emt 0:00:21]} 26. Nxe4 {[%emt 0:00:23]} Nxe4 {[%emt 0:00:02]} 27. Rxc8 {[%emt 0:00:09]} Rxc8 {[%emt 0:00:02][%mdl 4096] Endgame. KRB-KRN} 28. a5 {[%emt 0:00:02][%cal Ba4a5,Ba5a6][%mdl 32] Threatens to win with a6.} Nc5 {[%emt 0:00:35][%cal Be4c5,Bc5d7,Bd7c5][%mdl 32]} 29. a6 {[%emt 0:00:21] White is clearly winning.} Nd7 {[%emt 0:00:05]} 30. Ra4 {[%emt 0:00:14]} b3 {[%emt 0:00:09]} 31. Rb4 {[%emt 0:00:08]} Ra8 {[%emt 0:00:10]} 32. Rxb3 {[%emt 0:00:04]} Nc5 {[%emt 0:00:04]} 33. Ra3 {[%emt 0:00:02] a7 would now be deadly.} Ra7 {[%emt 0:00:05]} 34. b4 {[%emt 0:00:03][%cal Bb2b4,Bb4b5,Bb5b6,Bb6b7][%mdl 32]} Nd7 {[%emt 0:00:06]} 35. b5 {[%emt 0:00:03]} Kf8 {[%emt 0:00:05]} 36. Rd3 {[%emt 0:00:15][%cal Od3d7] Hoping for Rxd7!} Ke7 {[%emt 0:00:04] [#]} 37. Rxd7+ $1 {[%emt 0:00:14]} Kxd7 {[%emt 0:00:38]} (37... Rxd7 38. b6) 38. b6 {[%emt 0:00:02]} Ra8 {[%emt 0:00:14]} 39. b7 {[%emt 0:00:03] Weighted Error Value: White=0.31/Black=0.59.  Loses game:     	---       	Black=1      Mistake:       	White=1     	Black=2      Inaccurate:     	White=2     	Black=5      OK:         	White=11    	Black=4      Best:        	White=2     	---        Strong:       	---       	Black=1} 1-0

[Event "Indian Rapid Championship 2023-24"]
[Site "Nashik"]
[Date "2024.03.04"]
[Round "2.7"]
[White "Aakash G"]
[Black "Moksh Amit Doshi"]
[Result "0-1"]
[ECO "E39"]
[WhiteElo "2236"]
[BlackElo "2353"]
[Annotator "RC"]
[PlyCount "56"]
[EventDate "2024.03.02"]
[EventType "swiss"]
[EventCountry "IND"]
[SourceTitle "playchess.com"]
[Source "ChessBase"]
[SourceQuality "1"]
[TimeControl "900+10"]

1. d4 {[%emt 0:00:07]} Nf6 {[%emt 0:00:11]} 2. c4 {[%emt 0:00:06]} e6 {[%emt 0:00:24]} 3. Nc3 {[%emt 0:00:02]} Bb4 {[%emt 0:00:01]} 4. Qc2 {[%emt 0:00:02]} c5 {[%emt 0:01:11]} 5. dxc5 {[%emt 0:00:04]} O-O {[%emt 0:00:03]} 6. Bf4 {[%emt 0:00:04]} Bxc5 {[%emt 0:00:10]} 7. e3 {[%emt 0:00:03]} Nc6 {[%emt 0:00:22]} 8. a3 {[%emt 0:00:03]} b6 {[%emt 0:00:04]} 9. Bd3 {[%emt 0:00:07]} h6 {[%emt 0:00:08]} 10. Nf3 {[%emt 0:00:04]} Bb7 {[%emt 0:00:02]} 11. b4 {[%emt 0:00:37]} Be7 {[%emt 0:00:11]} 12. Rd1 {[%emt 0:00:05]} Nh5 {[%emt 0:00:15]} 13. O-O {[%emt 0:00:37]} Nxf4 {[%emt 0:00:03]} 14. exf4 {[%emt 0:00:02]} Rc8 {[%emt 0:00:10]} 15. Be4 {[%emt 0:00:39]} Qc7 {[%emt 0:00:56]} 16. Nb5 {[%emt 0:01:38]} Qxf4 {[%emt 0:00:43]} 17. Rxd7 {[%emt 0:00:06]} Nxb4 {[%emt 0:00:01]} 18. Bh7+ {[%emt 0:00:01]} Kh8 {[%emt 0:00:01]} 19. axb4 {[%emt 0:00:01]} Bxf3 {[%emt 0:00:18]} 20. gxf3 {[%emt 0:00:08]} g6 {[%emt 0:01:09]} 21. Bxg6 {[%emt 0:00:59]} Rg8 {[%emt 0:00:40]} 22. Re1 {[%emt 0:01:03]} Rxg6+ {[%emt 0:00:31]} 23. Kf1 {[%emt 0:00:02]} Rxc4 {[%emt 0:01:21]} 24. Qd3 {[%emt 0:01:20]} Bxb4 {[%emt 0:01:14]} 25. Rd1 {[%emt 0:03:06]} Rc1 {[%emt 0:01:19]} 26. Rd4 {[%emt 0:01:28]} Rxd1+ {[%emt 0:00:27]} 27. Qxd1 {[%emt 0:00:02]} Qxh2 {[%emt 0:00:10]} 28. Ke2 {[%emt 0:00:58]} Qe5+ {[%emt 0:00:10]} 0-1

[Event "Indian Rapid Championship 2023-24"]
[Site "Nashik"]
[Date "2024.03.04"]
[Round "2.8"]
[White "Sriram, Jha"]
[Black "Arindam, Mukherjee"]
[Result "1-0"]
[ECO "D37"]
[WhiteElo "2312"]
[BlackElo "1990"]
[Annotator "TA"]
[PlyCount "63"]
[EventDate "2024.03.02"]
[EventType "swiss"]
[EventCountry "IND"]
[SourceTitle "playchess.com"]
[Source "ChessBase"]
[SourceQuality "1"]
[TimeControl "900+10"]

{[%evp 16,63,16,34,106,100,108,136,188,186,192,189,166,173,184,197,174,169,154,152,346,331,448,347,350,331,973,530,456,348,537,396,583,327,614,285,375,363,391,383,683,457,459,451,467,474,494,500,1022,1008]} 1. d4 {[%emt 0:00:04]} d5 {[%emt 0:00:16]} 2. Nf3 {[%emt 0:00:02]} Nf6 {[%emt 0:00:17]} 3. c4 {[%emt 0:00:12]} e6 {[%emt 0:00:26]} 4. Nc3 {[%emt 0:00:14]} Be7 {[%emt 0:00:39]} 5. Bf4 {[%emt 0:00:05]} O-O {[%emt 0:00:09]} 6. e3 {[%emt 0:00:01]} c5 {[%emt 0:00:32]} 7. dxc5 {[%emt 0:00:07]} Bxc5 {[%emt 0:00:02]} 8. Qc2 {[%emt 0:00:26]} Nc6 {[%emt 0:00:35]} 9. a3 {[%emt 0:00:01]} a5 {[%emt 0:01:06]} ({Black should play} 9... Qa5 $14) 10. Rd1 $16 {[%emt 0:01:26][%cal Ba1d1,Bd1d5,Bd5b5][%mdl 32]} Be7 {[%emt 0:02:05]} 11. Be2 {[%emt 0:00:54]} Qb6 {[%emt 0:01:33]} (11... a4 $16 {keeps fighting.}) 12. cxd5 $18 {[%emt 0:02:37]} exd5 {[%emt 0:00:07]} 13. Nxd5 {[%emt 0:00:16]} Nxd5 {[%emt 0:00:04]} 14. Rxd5 {[%emt 0:00:01]} Be6 {[%emt 0:00:09]} 15. Rb5 {[%emt 0:00:26]} Qa7 {[%emt 0:01:08]} 16. O-O {[%emt 0:01:11]} Rac8 {[%emt 0:00:13]} 17. Qe4 $40 {[%emt 0:00:15][%mdl 128] Dodges Nd4. White goes for the king. White is much more active.} Bf6 {[%emt 0:02:10]} (17... Rfe8 $16 18. h4 a4) 18. Ng5 {[%emt 0:01:38]} Bxg5 {[%emt 0:00:30]} 19. Bxg5 {[%emt 0:00:27][%cal Bf4g5,Bg5f6,Bf6c3][%mdl 32]} Rfe8 {[%emt 0:00:41]} 20. Bd3 {[%emt 0:00:45]} g6 $2 {[%emt 0:00:58]} (20... f5 21. Rxf5 Bf7) 21. Qh4 {[%emt 0:00:14] [#] Intending Bf6 and mate. Black is weak on the dark squares} f5 {[%emt 0:01:24]} 22. Bf6 {[%emt 0:00:26]} Rc7 {[%emt 0:00:10]} (22... b6 $142 23. Rd1 Rf8) 23. Bc3 {[%emt 0:01:44] This pair of bishops is nice.} Rf7 {[%emt 0:00:03] Wards off Qf6} (23... Rf8 $142 24. Bc4 Bxc4 25. Qxc4+ Rff7) 24. Re1 {[%emt 0:00:42][%cal Og2g4]} Ref8 $2 {[%emt 0:00:36]} (24... Qb8 25. Be2 (25. Bxa5 Qd6 $18) 25... Qd8) 25. g3 {[%emt 0:00:29]} (25. g4 $142 {gxf5 is the strong threat.} Ne7 26. Qg3 (26. Rxa5 Qb6 $18)) 25... b6 {[%emt 0:01:36]} 26. Bc4 {[%emt 0:00:24]} Qd7 {[%emt 0:01:05]} 27. Rxb6 {[%emt 0:00:25] [#] Threatens to win with Bb5.} Rc8 $2 {[%emt 0:00:18]} (27... Bxc4 28. Qxc4 Rc8) 28. Bxe6 {[%emt 0:00:39] White is clearly winning.} Qxe6 {[%emt 0:00:02]} 29. Rd1 {[%emt 0:00:20] Prevents Qd5.} f4 {[%emt 0:00:41]} 30. exf4 {[%emt 0:00:29]} ({Much less strong is} 30. gxf4 Kf8 31. h3 Re8 32. Qh6+ Kg8) 30... Qe2 {[%emt 0:00:10]} 31. Re1 {[%emt 0:00:10]} Qf3 {[%emt 0:00:02]} (31... Qc4 $142 32. Qg4 Rd8) 32. Qh3 {[%emt 0:00:19] Black did not feel at home in the position after the opening.   Weighted Error Value: White=0.67/Black=0.86.  Loses game:     	---       	Black=1      Mistake:       	White=1     	Black=7      Inaccurate:     	White=3     	Black=2      OK:         	White=10    	Black=2      Best:        	White=1     	Black=1} 1-0

[Event "Indian Rapid Championship 2023-24"]
[Site "Nashik"]
[Date "2024.03.04"]
[Round "2.9"]
[White "Kshatriya Nitin Vekhande"]
[Black "Neelotpal, Das"]
[Result "0-1"]
[ECO "C68"]
[WhiteElo "2292"]
[BlackElo "2355"]
[Annotator "TA"]
[PlyCount "100"]
[EventDate "2024.03.02"]
[EventType "swiss"]
[EventCountry "IND"]
[SourceTitle "playchess.com"]
[Source "ChessBase"]
[SourceQuality "1"]
[TimeControl "900+10"]

{[%evp 21,100,-16,-17,-16,-3,0,0,0,7,0,0,0,0,0,0,0,0,0,59,12,15,15,9,0,0,8,8,7,12,11,64,-12,-14,-21,0,0,0,-10,-14,-156,-142,-540,-523,-826,-11,-927,-918,-885,-873,-851,-799,-758,-746,-703,-694,-688,-584,-483,-493,-29970,-29975,-29973,-29981,-29981,-29980,-29978,-29971,-29985,-29986,-29986,-29987,-29990,-29991,-29991,-29992,-29992,-29993,-29993,-29992,-29993,-29991]} 1. e4 {[%emt 0:00:01]} e5 {[%emt 0:00:01]} 2. Nf3 {[%emt 0:00:02]} Nc6 {[%emt 0:00:01]} 3. Bb5 {[%emt 0:00:02]} a6 {[%emt 0:00:02]} 4. Bxc6 {[%emt 0:00:02]} dxc6 {[%emt 0:00:01]} 5. d4 {[%emt 0:00:03]} exd4 {[%emt 0:00:04]} 6. Qxd4 {[%emt 0:00:01]} Qxd4 {[%emt 0:00:23]} 7. Nxd4 {[%emt 0:00:03]} Bd7 {[%emt 0:00:02]} 8. Be3 {[%emt 0:00:02]} O-O-O {[%emt 0:00:06]} 9. Nd2 {[%emt 0:00:03]} c5 {[%emt 0:00:47]} 10. Ne2 {[%emt 0:00:15]} b6 {[%emt 0:00:46]} 11. O-O-O {[%emt 0:00:06]} Ne7 {[%emt 0:00:55]} 12. h4 {[%emt 0:01:39]} h5 {[%emt 0:00:53]} 13. Nf4 {[%emt 0:00:51]} Nc6 {[%emt 0:02:06]} 14. f3 {[%emt 0:06:49] The position is equal.} Kb7 {[%emt 0:01:13]} 15. Nf1 {[%emt 0:01:18]} Bd6 {[%emt 0:00:40][%cal Oc6d4]} 16. Ng3 {[%emt 0:00:37]} g6 {[%emt 0:00:01]} 17. Nge2 {[%emt 0:00:04]} Be5 {[%emt 0:02:53]} 18. Nd5 {[%emt 0:00:56]} f5 {[%emt 0:00:01]} 19. Bg5 {[%emt 0:00:35] f4 would now be deadly.} Rde8 {[%emt 0:00:50] [#]} (19... fxe4 $1 $11 20. Bxd8 exf3 21. gxf3 Rxd8) 20. Nxb6 {[%emt 0:00:29]} Kxb6 $11 {[%emt 0:00:40]} 21. Rxd7 {[%emt 0:00:10] Hoping for f4.} fxe4 {[%emt 0:00:02]} 22. fxe4 {[%emt 0:00:01]} Rhf8 {[%emt 0:00:01] Dodges Nf4} 23. Be3 {[%emt 0:00:40] Dodges Rf2} Bd6 {[%emt 0:00:13]} 24. Nc3 {[%emt 0:00:28] Strongly threatening Nd5+.} Ne5 {[%emt 0:00:01]} 25. Rg7 {[%emt 0:00:29]} Kc6 {[%emt 0:00:43]} (25... Ng4 $11 26. Kd2 Re6) 26. b3 {[%emt 0:00:23]} (26. g3 $1 $14) 26... Re6 {[%emt 0:00:50]} 27. g3 {[%emt 0:00:53]} Rf3 {[%emt 0:00:58]} 28. Nd5 {[%emt 0:00:35]} Rxg3 {[%emt 0:01:12]} ({Much worse is} 28... Ng4 $6 29. Bf4 $16) 29. Bg5 {[%emt 0:01:31]} Nf3 {[%emt 0:00:55][%csl LRe4,LRg5]} 30. Bd8 {[%emt 0:00:19] Black continues to play with concentration.} (30. Bf4 $11 {was the only way to keep the balance.} Bxf4+ 31. Nxf4 Rxe4 32. Rxg6+ Rxg6 33. Nxg6) 30... Rxe4 $17 {[%emt 0:00:23]} 31. c4 {[%emt 0:00:25][%mdl 8192]} (31. Ne7+ $17 {is a better chance.} Kd7 32. Nf5+ Kxd8 33. Nxg3 Bxg3 34. Rxg6 Bxh4 (34... Rxh4 $2 35. Rxh4 Bxh4 36. Kd1 $19) 35. Rxa6) 31... Rg2 {[%emt 0:01:40]} 32. Bxc7 {[%emt 0:00:21]} Ng1 $2 {[%emt 0:00:02]} ({Not} 32... Nxh4 33. Bxd6 Kxd6 34. Rd1 $17) (32... Ree2 $19 33. Bxd6 Rxa2 (33... Kxd6 $2 34. Rd1 $19) 34. Ne7+ Kxd6 35. Rd1+ Ke5) 33. Rxg1 $4 {[%emt 0:00:09][%mdl 8192]} Rxg1+ $19 {[%emt 0:00:02]} 34. Kd2 {[%emt 0:00:02]} Rg2+ {[%emt 0:00:20]} 35. Kd3 {[%emt 0:00:02]} Rd4+ {[%emt 0:00:06]} 36. Ke3 {[%emt 0:00:01]} Rxh4 {[%emt 0:00:21] ( -> ...Rh3+)} 37. Bxd6 {[%emt 0:00:22]} Kxd6 {[%emt 0:00:07][%mdl 4096] Endgame. KRR-KRN} 38. Kf3 {[%emt 0:00:01]} Rxa2 {[%emt 0:00:25] aiming for ...Rh3+.} 39. Rxg6+ {[%emt 0:00:03]} Ke5 {[%emt 0:00:01] White must now prevent ...Rh3+.} 40. Nb6 {[%emt 0:00:23] [#]} (40. Rg5+ $19 Kd4 41. Nf4) 40... Rh3+ {[%emt 0:00:10] Black mates.} 41. Rg3 {[%emt 0:00:01]} Rxg3+ {[%emt 0:00:01]} 42. Kxg3 {[%emt 0:00:02] KR-KN} Rb2 {[%emt 0:00:04]} 43. Nd7+ {[%emt 0:00:08]} Kd4 {[%emt 0:00:01]} 44. Kh4 {[%emt 0:00:01]} Rxb3 {[%emt 0:00:02]} 45. Kxh5 {[%emt 0:00:02]} a5 {[%emt 0:00:01]} 46. Nf6 {[%emt 0:00:08]} a4 {[%emt 0:00:01]} 47. Nd5 {[%emt 0:00:35]} a3 {[%emt 0:00:01]} 48. Ne7 {[%emt 0:00:02]} a2 {[%emt 0:00:03]} 49. Nc6+ {[%emt 0:00:02]} Kc3 {[%emt 0:00:03]} 50. Na5 {[%emt 0:00:03]} a1=Q {[%emt 0:00:03] Weighted Error Value: White=0.62/Black=0.32.  Loses game:     	White=2     	---        Missed win:     	---       	Black=1      Mistake:       	White=4     	Black=2      Inaccurate:     	White=1     	---        OK:         	White=12    	Black=10     Best:        	---       	Black=2} 0-1